fUST/lending_fUST_20250225
["ID","MTS","AMOUNT","RATE_DAILY","PERIOD"]
[354441432,1740498663058,-23100.91459404,0.00041221,32]
[354441433,1740498663069,-251.87329101,0.00041221,2]
[354441434,1740498663081,-15639.81517715,0.00041221,120]
[354441435,1740498663096,-234.09663534,0.00041221,10]
[354441436,1740498663107,-12727.82211303,0.00041221,120]
[354441437,1740498663119,-293.47940121,0.00041221,2]
[354441438,1740498663129,-812.86587139,0.00041221,2]
[354441439,1740498663140,-1640.85235381,0.00041221,2]
[354441440,1740498663150,-28699.36449448,0.00041221,120]
[354441441,1740498663161,-323.26482693,0.00041221,2]
[354441442,1740498663171,-1195.55448012,0.00041221,2]
[354441443,1740498663181,-288.50597385,0.00041221,2]
[354441444,1740498663191,-51112.3333737,0.00041221,2]
[354441445,1740498663202,-355.18812482,0.00041221,2]
[354441446,1740498663212,-4157.34042716,0.00041221,2]
[354441447,1740498663222,-154.65482288,0.00041221,2]
[354441448,1740498663232,-161220.86939953,0.00041221,60]
[354441449,1740498663242,-10186.31352409,0.00041221,2]
[354441450,1740498663253,-3006.08337493,0.00041221,2]
[354441451,1740498663262,-6221.53900062,0.00041221,2]
[354441452,1740498663273,-155.7618212,0.00041221,2]
[354441453,1740498663283,-520.45518104,0.00041221,2]
[354441454,1740498663293,-36887.64974231,0.00041221,120]
[354441455,1740498663303,-1694.98361273,0.00041221,2]
[354441456,1740498663313,-440.99385897,0.00041221,2]
[354441457,1740498663322,-1780.69585008,0.00041221,30]
[354441458,1740498663335,-1847.84284311,0.00041221,2]
[354441459,1740498663346,-200.0,0.00041221,10]
[354441460,1740498663357,-501.89752375,0.00041221,2]
[354441461,1740498663367,-13624.62099372,0.00041221,2]
[354441462,1740498663379,-4001.08054328,0.00041221,3]
[354441463,1740498663390,-493501.89828369,0.00041221,10]
[354441464,1740498663401,-151.18713376,0.00041221,2]
[354441465,1740498663411,-300.00723537,0.00041221,2]
[354441466,1740498663422,-1382.13770139,0.00041221,2]
[354441467,1740498663433,-580.63546965,0.00041221,2]
[354441468,1740498663444,-5826.23995912,0.00041221,2]
[354441469,1740498663454,-15674.96776758,0.00041221,2]
[354441470,1740498663464,-9059.06110012,0.00041221,2]
[354441471,1740498663475,-501.96176886,0.00041221,2]
[354441472,1740498663485,-20262.74151337,0.00041221,15]
[354441473,1740498663496,-882.76686012,0.00041221,2]
[354441474,1740498663505,-3915.80964882,0.00041221,2]
[354441475,1740498663516,-449.999999,0.00041221,120]
[354441476,1740498663526,-2000.0,0.00041221,30]
[354441477,1740498663536,-1987.0,0.00041221,30]
[354441478,1740498663546,-2000.0,0.00041221,30]
[354441479,1740498663749,-2000.0,0.00041221,30]
[354441480,1740498663766,-848.0,0.00041221,30]
[354441481,1740498663777,-2000.0,0.00041221,30]
[354441482,1740498663787,-2000.0,0.00041221,30]
[354441483,1740498663797,-848.0,0.00041221,30]
[354441484,1740498663807,-250.0,0.00041221,10]
[354441485,1740498663816,-260.88904,0.00041221,10]
[354441486,1740498663826,-1027505.07293,0.00041221,120]
[354441487,1740498663839,-521504.0,0.00041221,120]
[354441488,1740498663849,-151.0,0.00041221,120]
[354441489,1740498663858,-151.0,0.00041221,120]
[354441490,1740498663868,-151.0,0.00041221,120]
[354441491,1740498663878,-151.0,0.00041221,120]
[354441492,1740498663888,-163.87896,0.00041221,120]
[354441493,1740498663899,-500.0,0.00041273,10]
[354441494,1740498663909,-17834.0,0.000414,120]
[354441495,1740498663919,-20000.0,0.000415,120]
[354441496,1740498663930,-10000.0,0.000415,70]
[354441497,1740498663940,-500.0,0.00041527,120]
[354441498,1740498663951,-5000.0,0.0004157,120]
[354441499,1740498663960,-5000.0,0.0004157,120]
[354441500,1740498663970,-2491.592374,0.00041572,3]
[354441501,1740498663980,-2491.592374,0.00041572,3]
[354441502,1740498663991,-2491.592374,0.00041572,3]
[354441503,1740498664001,-2491.592374,0.00041572,3]
[354441504,1740498664011,-2491.592374,0.00041572,3]
[354441505,1740498664021,-2491.592374,0.00041572,3]
[354441506,1740498664032,-2491.592374,0.00041572,3]
[354441507,1740498664042,-2491.592374,0.00041572,3]
[354441508,1740498664052,-256.673156,0.00041572,30]
[354441509,1740498664062,-256.673156,0.00041572,30]
[354441510,1740498664072,-256.673156,0.00041572,30]
[354441511,1740498664085,-256.673156,0.00041572,30]
[354441512,1740498664102,-256.673156,0.00041572,30]
[354441513,1740498664112,-256.673156,0.00041572,30]
[354441514,1740498664122,-256.673156,0.00041572,30]
[354441515,1740498664132,-256.673156,0.00041572,30]
[354441516,1740498664143,-251.450207,0.00041572,120]
[354441517,1740498664153,-251.450207,0.00041572,120]
[354441518,1740498664164,-251.450207,0.00041572,120]
[354441519,1740498664174,-251.450207,0.00041572,120]
[354441520,1740498664184,-251.450207,0.00041572,120]
[354441521,1740498664194,-251.450207,0.00041572,120]
[354441522,1740498664204,-251.450207,0.00041572,120]
[354441523,1740498664214,-251.450207,0.00041572,120]
[354441524,1740498664224,-183.896665,0.00041572,120]
[354441525,1740498664233,-183.896665,0.00041572,120]
[354441526,1740498664243,-183.896665,0.00041572,120]
[354441527,1740498664253,-183.896665,0.00041572,120]
[354441528,1740498664263,-183.896665,0.00041572,120]
[354441529,1740498664273,-183.896665,0.00041572,120]
[354441530,1740498664284,-183.896665,0.00041572,120]
[354441531,1740498664294,-183.896665,0.00041572,120]
[354441532,1740498664304,-151.0,0.00041572,120]
[354441533,1740498664314,-151.0,0.00041572,120]
[354441534,1740498664324,-151.0,0.00041572,120]
[354441535,1740498664338,-151.0,0.00041572,120]
[354441536,1740498664349,-151.0,0.00041572,120]
[354441537,1740498664359,-151.0,0.00041572,120]
[354441538,1740498664369,-151.0,0.00041572,120]
[354441539,1740498664379,-173.124936,0.00041572,120]
[354441540,1740498664390,-339.580112,0.00041572,120]
[354441541,1740498664400,-339.580112,0.00041572,120]
[354441542,1740498664410,-285.7,0.00041572,120]
[354441543,1740498664420,-285.7,0.00041572,120]
[354441544,1740498664429,-151.0,0.00041572,120]
[354441545,1740498664439,-188.478144,0.00041572,110]
[354441546,1740498664449,-188.478144,0.00041572,110]
[354441547,1740498664460,-472.640879,0.00041572,120]
[354441548,1740498664470,-472.640879,0.00041572,120]
[354441549,1740498664480,-1351.232699,0.00041572,120]
[354441550,1740498664489,-1351.232699,0.00041572,120]
[354441551,1740498664499,-200.429904,0.00041572,120]
[354441552,1740498664509,-200.429904,0.00041572,120]
[354441553,1740498664519,-153.218267,0.00041572,120]
[354441554,1740498664529,-153.218267,0.00041572,120]
[354441555,1740498664539,-151.0,0.00041572,120]
[354441556,1740498664548,-500.0,0.00041637,51]
[354441557,1740498664558,-500.0,0.00041737,114]
[354441558,1740498664568,-6223.81344903,0.00041825,2]
[354441559,1740498664578,-396.58191561,0.0004198,2]
[354441560,1740498664591,-2000.0,0.00042,35]
[354441561,1740498664600,-3469.7304316,0.00042,10]
[354441562,1740498664610,-500.0,0.00042137,97]
[354441563,1740498664620,-500.0,0.00042337,22]
[354441564,1740498664629,-150.0,0.00042373,10]
[354441565,1740498664639,-150.0,0.00042373,10]
[354441566,1740498664649,-151.0,0.000424,120]
[354441567,1740498664659,-1707.39344032,0.000424,120]
[354441568,1740498664669,-2491.592374,0.000424,3]
[354441569,1740498664680,-2491.592374,0.000424,3]
[354441570,1740498664690,-256.673156,0.000424,30]
[354441571,1740498664700,-256.673156,0.000424,30]
[354441572,1740498664710,-251.450207,0.000424,120]
[354441573,1740498664720,-251.450207,0.000424,120]
[354441574,1740498664730,-183.896665,0.000424,120]
[354441575,1740498664740,-183.896665,0.000424,120]
[354441576,1740498664750,-151.0,0.000424,120]
[354441577,1740498664760,-400072.56,0.000424,30]
[354441578,1740498664769,-151.468165,0.000424,120]
[354441579,1740498664779,-5022.93,0.000425,80]
[354441580,1740498664790,-500.0,0.00042537,83]
[354441581,1740498664799,-500.0,0.00042637,79]
[354441582,1740498664810,-500.0,0.00042737,60]
[354441583,1740498664820,-5000.0,0.0004277,120]
[354441584,1740498664829,-5000.0,0.0004277,120]
[354441585,1740498664840,-881.24,0.000428,60]
[354441586,1740498664850,-250.0,0.00042921,10]
[354441587,1740498664859,-250.0,0.00042921,10]
[354441588,1740498664869,-500.0,0.00042937,31]
[354441589,1740498664878,-1000.0,0.00043,30]
[354441590,1740498664888,-2000.0,0.00043,120]
[354441591,1740498664898,-5709.34448497,0.00043,120]
[354441592,1740498664908,-609.28093247,0.00043,120]
[354441593,1740498664917,-61280.0,0.00043,120]
[354441594,1740498664927,-2000.0,0.00043,32]
[354441595,1740498664936,-152.0,0.00043,90]
[354441596,1740498664946,-185.0,0.00043,90]
[354441597,1740498664956,-500.0,0.00043037,53]
[354441598,1740498664966,-3215.5722012,0.00043064,4]
[354441599,1740498664975,-339.580112,0.000431,120]
[354441600,1740498664985,-339.580112,0.000431,120]
[354441601,1740498664995,-285.7,0.000431,120]
[354441602,1740498665004,-285.7,0.000431,120]
[354441603,1740498665014,-151.493971,0.000431,120]
[354441604,1740498665023,-188.478144,0.000431,110]
[354441605,1740498665033,-188.478144,0.000431,110]
[354441606,1740498665042,-472.640879,0.000431,120]
[354441607,1740498665052,-472.640879,0.000431,120]
[354441608,1740498665062,-1351.232699,0.000431,120]
[354441609,1740498665071,-1351.232699,0.000431,120]
[354441610,1740498665083,-200.429904,0.000431,120]
[354441611,1740498665095,-200.429904,0.000431,120]
[354441612,1740498665106,-153.218267,0.000431,120]
[354441613,1740498665117,-153.218267,0.000431,120]
[354441614,1740498665126,-151.0,0.000431,120]
[354441615,1740498665137,-500.0,0.00043137,100]
[354441616,1740498665146,-500.0,0.00043237,4]
[354441617,1740498665156,-500.0,0.00043437,13]
[354441618,1740498665166,-304.0316685,0.00043468,10]
[354441619,1740498665176,-350.0,0.00043468,10]
[354441620,1740498665188,-10000.0,0.000435,90]
[354441621,1740498665198,-500.0,0.00043637,67]
[354441622,1740498665208,-6223.81344903,0.00043639,2]
[354441623,1740498665217,-500.0,0.00043737,93]
[354441624,1740498665227,-267.71493481,0.00043745,7]
[354441625,1740498665236,-198.1564982,0.00043773,10]
[354441626,1740498665246,-1000.0,0.0004379,7]
[354441627,1740498665256,-151.0,0.000438,120]
[354441628,1740498665265,-151.0,0.000438,120]
[354441629,1740498665276,-400072.56,0.000438,30]
[354441630,1740498665286,-6181.14819078,0.000438,14]
[354441631,1740498665296,-267.266385,0.000438,120]
[354441632,1740498665306,-383.382399,0.000438,120]
[354441633,1740498665317,-267.266385,0.000438,120]
[354441634,1740498665328,-383.382399,0.000438,120]
[354441635,1740498665346,-5000.0,0.000438,120]
[354441636,1740498665357,-5000.0,0.000438,120]
[354441637,1740498665369,-5000.0,0.00043836,120]
[354441638,1740498665379,-5000.0,0.00043836,120]
[354441639,1740498665390,-5000.0,0.00043836,120]
[354441640,1740498665400,-5000.0,0.00043836,120]
[354441641,1740498665411,-5000.0,0.00043836,120]
[354441642,1740498665423,-5000.0,0.00043836,120]
[354441643,1740498665433,-5000.0,0.00043836,120]
[354441644,1740498665443,-4618.56972,0.00043836,120]
[354441645,1740498665454,-255.38228853,0.00043836,31]
[354441646,1740498665464,-151.0,0.00043836,120]
[354441647,1740498665474,-151.0,0.00043836,120]
[354441648,1740498665485,-280.644462,0.00043836,120]
[354441649,1740498665496,-151.0,0.00043836,30]
[354441650,1740498665506,-151.0,0.00043836,120]
[354441651,1740498665516,-151.779412,0.00043836,120]
[354441652,1740498665526,-151.0,0.00043836,120]
[354441653,1740498665537,-174.036188,0.00043836,120]
[354441654,1740498665547,-151.0,0.00043836,120]
[354441655,1740498665558,-777.769038,0.00043836,120]
[354441656,1740498665568,-777.769038,0.00043836,120]
[354441657,1740498665578,-3355.266709,0.00043836,120]
[354441658,1740498665592,-3355.266709,0.00043836,120]
[354441659,1740498665602,-151.0,0.00043836,120]
[354441660,1740498665613,-512.426238,0.00043836,120]
[354441661,1740498665623,-512.426238,0.00043836,120]
[354441662,1740498665634,-262.922669,0.00043836,120]
[354441663,1740498665645,-262.922669,0.00043836,120]
[354441664,1740498665655,-151.0,0.00043836,120]
[354441665,1740498665665,-151.0,0.00043836,120]
[354441666,1740498665676,-500.0,0.00043837,2]
[354441667,1740498665686,-1000.0,0.0004385,7]
[354441668,1740498665696,-1000.0,0.00043882,7]
[354441669,1740498665706,-1512.20603,0.000439,120]
[354441670,1740498665716,-13810.76811209,0.000439,120]
[354441671,1740498665726,-269.64762956,0.000439,28]
[354441672,1740498665736,-1000.0,0.00043902,7]
[354441673,1740498665746,-1000.0,0.00043932,7]
[354441674,1740498665756,-500.0,0.00043937,2]
[354441675,1740498665765,-1284.84989806,0.00043942,2]
[354441676,1740498665775,-151.0,0.00043942,2]
[354441677,1740498665784,-3000.0,0.00043998,120]
[354441678,1740498665794,-3000.0,0.00043998,120]
[354441679,1740498665963,-5000.0,0.00043998,120]
[354441680,1740498665973,-6000.0,0.00043998,120]
[354441681,1740498665983,-500.0,0.00044,120]
[354441682,1740498665993,-500.0,0.00044,16]
[354441683,1740498666003,-500.0,0.00044,16]
[354441684,1740498666013,-2929209.01360559,0.00044,30]
[354441689,1740498907667,172.196455,0.00013699,2]
[354441691,1740498925107,-3221.45110527,0.00017964,5]
[354441692,1740498925137,-5000.0,0.00024211,10]
[354441693,1740498925166,-948.60657836,0.00024456,10]
[354441694,1740498925200,-51411.10524716,0.00024853,31]
[354441695,1740498925231,-3747.15019951,0.000259,4]
[354441696,1740498925270,-156.79,0.000266,31]
[354441697,1740498925309,-156.79,0.000266,31]
[354441698,1740498925341,-3747.15019951,0.00027038,4]
[354441699,1740498925374,-3747.15019951,0.00028176,5]
[354441700,1740498925405,-3747.15019951,0.00029314,5]
[354441701,1740498925436,-160.0,0.0003,10]
[354441702,1740498925465,-3747.15019951,0.00030452,5]
[354441703,1740498925496,-3747.15019951,0.0003159,6]
[354441704,1740498925534,-51411.10524712,0.00031865,72]
[354441705,1740498925564,-205.09072233,0.00031888,5]
[354441706,1740498925595,-503.67890754,0.00031888,5]
[354441707,1740498925629,-500.0,0.00031888,5]
[354441708,1740498925663,-500.0,0.00031888,5]
[354441709,1740498925694,-500.0,0.00031888,5]
[354441710,1740498925725,-584.051155,0.00031888,5]
[354441711,1740498925754,-641.86543425,0.00031888,5]
[354441712,1740498925785,-471.14705293,0.00031888,5]
[354441713,1740498925814,-500.0,0.00031888,5]
[354441714,1740498925842,-500.0,0.00031888,5]
[354441715,1740498925875,-3747.15019951,0.00032728,6]
[354441716,1740498925905,-3747.15019951,0.00033866,6]
[354441717,1740498925936,-280050.79,0.000339,30]
[354441718,1740498925968,-19603.87691479,0.00034988,7]
[354441719,1740498925997,-160.0,0.00034988,7]
[354441720,1740498926028,-3747.15019951,0.00035003,7]
[354441721,1740498926058,-19603.87691479,0.00035499,30]
[354441722,1740498926094,-3747.15019951,0.00036141,7]
[354441723,1740498926127,-3747.15019951,0.00037279,7]
[354441724,1740498926158,-1000.0,0.00037368,5]
[354441725,1740498926190,-500.32403874,0.00037368,5]
[354441726,1740498926223,-1000.0,0.00037368,5]
[354441727,1740498926252,-1000.0,0.00037368,5]
[354441728,1740498926285,-3747.15019951,0.00038417,8]
[354441729,1740498926315,-51411.10524712,0.00038877,113]
[354441730,1740498926345,-3747.15019951,0.00039555,8]
[354441731,1740498926381,-6128.0,0.0004,120]
[354441732,1740498926410,-3747.15019951,0.00040693,8]
[354441733,1740498926440,-500.0,0.00041173,10]
[354441734,1740498926469,-500.0,0.00041173,10]
[354441735,1740498926499,-563.71623255,0.00041173,10]
[354441736,1740498926529,-500.0,0.00041173,10]
[354441737,1740498926559,-500.0,0.00041173,10]
[354441738,1740498926589,-500.0,0.00041173,10]
[354441739,1740498926620,-500.0,0.00041173,10]
[354441740,1740498926650,-500.0,0.00041173,10]
[354441741,1740498926682,-2567.726757,0.00041194,120]
[354441742,1740498926712,-2567.726757,0.00041194,120]
[354441743,1740498927047,-2567.726757,0.00041194,120]
[354441744,1740498927093,-2567.726757,0.00041194,120]
[354441745,1740498927128,-151.0,0.00041199,120]
[354441746,1740498927159,-151.0,0.00041199,120]
[354441747,1740498927189,-151.0,0.00041199,120]
[354441748,1740498927221,-151.477822,0.00041199,120]
[354441749,1740498927252,-151.0,0.00041199,120]
[354441750,1740498927283,-151.0,0.00041199,120]
[354441751,1740498927314,-151.0,0.00041199,120]
[354441752,1740498927341,-151.0,0.00041199,120]
[354441753,1740498927374,-151.0,0.00041199,120]
[354441754,1740498927402,-151.0,0.00041199,120]
[354441755,1740498927431,-151.0,0.00041199,120]
[354441756,1740498927461,-151.0,0.00041199,120]
[354441757,1740498927491,-151.0,0.00041199,120]
[354441758,1740498927519,-151.0,0.00041199,120]
[354441759,1740498927548,-151.0,0.00041199,120]
[354441760,1740498927577,-151.0,0.00041199,120]
[354441761,1740498927608,-193.972251,0.00041199,120]
[354441762,1740498927638,-193.972251,0.00041199,120]
[354441763,1740498927667,-193.972251,0.00041199,120]
[354441764,1740498927696,-193.972251,0.00041199,120]
[354441765,1740498927725,-193.972251,0.00041199,120]
[354441766,1740498927769,-193.972251,0.00041199,120]
[354441767,1740498927806,-193.972251,0.00041199,120]
[354441768,1740498927840,-193.972251,0.00041199,120]
[354441769,1740498927873,-280050.79,0.000412,30]
[354441770,1740498927906,-223.596991,0.00041203,120]
[354441771,1740498927938,-223.596991,0.00041203,120]
[354441772,1740498927968,-223.596991,0.00041203,120]
[354441773,1740498927998,-223.596991,0.00041203,120]
[354441774,1740498928027,-332.618349,0.00041221,120]
[354441775,1740498928060,-332.618349,0.00041221,120]
[354441776,1740498928091,-332.618349,0.00041221,120]
[354441777,1740498928122,-332.618349,0.00041221,120]
[354441778,1740498928153,-332.618349,0.00041221,120]
[354441779,1740498928183,-332.618349,0.00041221,120]
[354441780,1740498928216,-3747.15019951,0.00041831,9]
[354441781,1740498928248,-713.91816061,0.0004199,4]
[354441782,1740498928278,-19603.87691479,0.00042,10]
[354441783,1740498928309,-332.618349,0.000424,120]
[354441784,1740498928339,-332.618349,0.000424,120]
[354441785,1740498928371,-3747.15019951,0.00042969,9]
[354441786,1740498928401,-186.0,0.00043,90]
[354441787,1740498928432,-6128.0,0.00043,120]
[354441788,1740498928462,-615.38743237,0.00043017,10]
[354441789,1740498928492,-151.1363072,0.00043017,5]
[354441790,1740498928523,-500.0,0.00043017,10]
[354441791,1740498928555,-2343.04015541,0.0004317,30]
[354441792,1740498928586,-271.0,0.0004327,68]
[354441793,1740498928618,-157.56,0.00043583,120]
[354441794,1740498928649,-710.8412796,0.00043754,30]
[354441795,1740498928680,-151.0,0.000438,120]
[354441796,1740498928710,-221.492773,0.000438,120]
[354441797,1740498928741,-151.0,0.000438,120]
[354441798,1740498928772,-193.972251,0.000438,120]
[354441799,1740498928802,-193.972251,0.000438,120]
[354441800,1740498928832,-2567.726757,0.00043836,120]
[354441801,1740498928863,-2567.726757,0.00043836,120]
[354441802,1740498928892,-223.596991,0.00043836,120]
[354441803,1740498928921,-223.596991,0.00043836,120]
[354441804,1740498928951,-2432.09337491,0.0004399,4]
[354441805,1740498933100,-400.0,0.00043,120]
[354441806,1740498933132,-8276.67903419,0.0004399,4]
[354441807,1740498933161,-332.618349,0.00043999,120]
[354441808,1740498933192,-332.618349,0.00043999,120]
[354441809,1740498933223,-500.0,0.00043999,31]
[354441810,1740498933251,-383.27534299,0.00043999,120]
[354441811,1740498933283,-621.49293194,0.00043999,120]
[354441812,1740498933311,-500.0,0.00043999,31]
[354441813,1740498933341,-408.55858623,0.00043999,31]
[354441814,1740498933374,-50000.0,0.00044,31]
[354441815,1740498933406,-500.0,0.00044,16]
[354441816,1740498933435,-500.0,0.00044,16]
[354441817,1740498933465,-837244.75740665,0.00044,30]
[354441818,1740498940370,-1014.83936498,0.00043,120]
[354441819,1740498940405,-186.0,0.00043,90]
[354441820,1740498940434,-203135.11744116,0.00044,30]
[354441821,1740498940839,-500.0,0.00044,120]
[354441822,1740498940866,-151.0,0.00044,120]
[354441823,1740498940894,-1000.0,0.00044,30]
[354441824,1740498940922,-299.230106,0.00044,120]
[354441825,1740498940949,-299.230106,0.00044,120]
[354441826,1740498940975,-151.0,0.00044,120]
[354441827,1740498941001,-151.0,0.00044,120]
[354441828,1740498941028,-151.0,0.00044,120]
[354441829,1740498941055,-151.0,0.00044,120]
[354441830,1740498941217,-256.673156,0.00044,30]
[354441831,1740498941246,-256.673156,0.00044,30]
[354441832,1740498941275,-256.673156,0.00044,30]
[354441833,1740498941302,-256.67316,0.00044,30]
[354441834,1740498941332,-251.450207,0.00044,120]
[354441835,1740498941360,-251.450207,0.00044,120]
[354441836,1740498941391,-183.896665,0.00044,120]
[354441837,1740498941418,-183.896665,0.00044,120]
[354441838,1740498941445,-151.0,0.00044,120]
[354441839,1740498941471,-181.242114,0.00044,120]
[354441840,1740498941499,-181.242114,0.00044,120]
[354441841,1740498941527,-339.580112,0.00044,120]
[354441842,1740498941554,-339.580112,0.00044,120]
[354441843,1740498941583,-285.7,0.00044,120]
[354441844,1740498941610,-151.0,0.00044,120]
[354441845,1740498941640,-151.0,0.00044,120]
[354441846,1740498941666,-151.0,0.00044,120]
[354441847,1740498941693,-291.116276,0.00044,120]
[354441848,1740498941721,-472.640879,0.00044,120]
[354441849,1740498941749,-472.640879,0.00044,120]
[354441850,1740498941777,-1351.232699,0.00044,120]
[354441851,1740498941804,-1351.232699,0.00044,120]
[354441852,1740498941831,-865.310563,0.00044,120]
[354441853,1740498941860,-865.310563,0.00044,120]
[354441854,1740498941888,-865.310563,0.00044,120]
[354441855,1740498941916,-865.310563,0.00044,120]
[354441856,1740498941944,-409.048072,0.00044,120]
[354441857,1740498941970,-409.048072,0.00044,120]
[354441858,1740498941996,-409.048072,0.00044,120]
[354441859,1740498942023,-409.048072,0.00044,120]
[354441860,1740498942051,-230.256273,0.00044,120]
[354441861,1740498942078,-230.256273,0.00044,120]
[354441862,1740498942105,-204.509736,0.00044,120]
[354441863,1740498942133,-204.509736,0.00044,120]
[354441864,1740498942161,-204.509736,0.00044,120]
[354441865,1740498942188,-204.509736,0.00044,120]
[354441866,1740498942220,-151.0,0.00044,120]
[354441867,1740498942247,-151.097047,0.00044,30]
[354441868,1740498942273,-151.400851,0.00044,120]
[354441869,1740498942305,-151.0,0.00044,120]
[354441870,1740498942331,-194.094553,0.00044,120]
[354441871,1740498942357,-151.0,0.00044,120]
[354441872,1740498942385,-151.0,0.00044,120]
[354441873,1740498942412,-151.0,0.00044,120]
[354441874,1740498942440,-512.426238,0.00044,120]
[354441875,1740498942467,-512.426238,0.00044,120]
[354441876,1740498942494,-262.922669,0.00044,120]
[354441877,1740498942522,-262.922669,0.00044,120]
[354441878,1740498942549,-151.0,0.00044,120]
[354441879,1740498942578,-151.0,0.00044,120]
[354441880,1740498942605,-267.266385,0.00044,120]
[354441881,1740498942632,-383.382399,0.00044,120]
[354441882,1740498942659,-267.266385,0.00044,120]
[354441883,1740498942685,-383.382399,0.00044,120]
[354441884,1740498942713,-5000.0,0.00044,120]
[354441885,1740498942740,-5000.0,0.00044,120]
[354441886,1740498942768,-2567.726757,0.00044,120]
[354441887,1740498942795,-2567.726757,0.00044,120]
[354441888,1740498942822,-151.0,0.00044,120]
[354441889,1740498942849,-151.0,0.00044,120]
[354441890,1740498942876,-223.596991,0.00044,120]
[354441891,1740498942902,-223.596991,0.00044,120]
[354441892,1740498942930,-499.0,0.00044,30]
[354441893,1740498942957,-332.618349,0.00044,120]
[354441894,1740498942984,-332.618349,0.00044,120]
[354441895,1740498943013,-193.972251,0.00044,120]
[354441896,1740498943042,-193.972251,0.00044,120]
[354441897,1740498943072,-3747.15019951,0.00044107,9]
[354441898,1740498943099,-1073.46436203,0.00044252,10]
[354441899,1740498943130,-280050.79,0.000444,30]
[354441900,1740498943156,-355.4206398,0.00044427,30]
[354441901,1740498943184,-355.4206398,0.00044427,30]
[354441902,1740498943213,-355.4206398,0.00044427,30]
[354441903,1740498943241,-354.6616337,0.00044427,30]
[354441904,1740498943268,-25000.0,0.000445,60]
[354441905,1740498943296,-299.230106,0.000445,120]
[354441906,1740498943324,-299.230106,0.000445,120]
[354441907,1740498943350,-151.0,0.000445,120]
[354441908,1740498943379,-151.0,0.000445,120]
[354441909,1740498943406,-151.0,0.000445,120]
[354441910,1740498943435,-151.0,0.000445,120]
[354441911,1740498943660,-251.450207,0.000445,120]
[354441912,1740498943689,-251.450205,0.000445,120]
[354441913,1740498943716,-183.896665,0.000445,120]
[354441914,1740498943745,-183.896658,0.000445,120]
[354441915,1740498943776,-10000.0,0.000445,90]
[354441916,1740498943804,-2000.0,0.00044593,120]
[354441917,1740498943832,-710.7543087,0.00044619,30]
[354441918,1740498943860,-355.4206398,0.00044619,30]
[354441919,1740498943890,-355.4206398,0.00044619,30]
[354441920,1740498943917,-355.4206398,0.00044619,30]
[354441921,1740498943944,-355.4206398,0.00044619,30]
[354441922,1740498943970,-355.4206398,0.00044619,30]
[354441923,1740498943996,-355.4206398,0.00044619,30]
[354441924,1740498944022,-355.4206398,0.00044619,30]
[354441925,1740498944048,-355.4206398,0.00044619,30]
[354441926,1740498944074,-306.0,0.00044619,30]
[354441927,1740498944101,-153.0,0.00044619,30]
[354441928,1740498944129,-153.0,0.00044619,30]
[354441929,1740498944156,-153.0,0.00044619,30]
[354441930,1740498944184,-557.1517698,0.00044619,30]
[354441931,1740498944212,-153.0,0.00044619,30]
[354441932,1740498944238,-209.3877936,0.00044619,30]
[354441933,1740498944267,-355.4206398,0.00044713,30]
[354441934,1740498944296,-308.2144196,0.00044713,30]
[354441935,1740498944322,-364.137518,0.00044713,30]
[354441936,1740498944349,-1126.6612545,0.00044713,30]